Workbook

Sheet Меню 11-18 лет!!!
A1: Меню
A2: Примерное двухнедельное меню для обучающихся в общеобразовательных учреждениях с 5-11 классы (сентябрь, октябрь)
A4: № Сб.рец | B4: Наименование продуктов | C4: Выход | D4: Белки,г | E4: Жиры,г | F4: Угл-ды,г | G4: Энер.ценность (ККАЛ) | H4: В1,мг | I4: С,мг | J4: А,мг | K4: Е,мг | L4: Са,мг | M4: Р,мг | N4: Mg,мг | O4: Fe,мг
A5: 1-ая неделя
B6: 1 день
A7: ттк | B7: Котлеты "Пожарские", п/ф | C7: 100 | D7: 11.00 | E7: 9.63 | F7: 11.05 | G7: 210.00 | H7: 0.06 | I7: 1.50 | K7: 1.56 | L7: 17.81 | M7: 136.35 | N7: 18.30 | O7: 2.01
A8: № 508/3 сборник 2004 | B8: Каша гречневая рассыпчатая с маслом | C8: 180/5 | D8: 10.50 | E8: 6.39 | F8: 47.75 | G8: 290.00 | H8: 0.25 | J8: 20.00 | K8: 1.20 | L8: 29.99 | M8: 250.32 | N8: 168.62 | O8: 5.66
A9: № 377, Сбор рец. На прод-ию для обуч. Во всех образ. Учреж Дели 2015 | B9: Чай черный с сахаром, лимоном | C9: 200/15/7 | D9: 0.08 | E9: 0.01 | F9: 9.87 | G9: 62.00 | H9: 0.00 | K9: 0.01 | L9: 3.25 | M9: 1.54 | N9: 0.84 | O9: 0.09
B10: Хлеб белый | C10: 30 | D10: 2.28 | E10: 0.24 | F10: 14.76 | G10: 71.00 | H10: 0.03 | K10: 0.33 | L10: 6.00 | M10: 19.50 | N10: 4.20 | O10: 0.33
B11: Хлеб сельский | C11: 20 | D11: 1.00 | E11: 0.20 | F11: 9.00 | G11: 44.00 | H11: 0.01 | K11: 0.11 | L11: 2.76 | M11: 12.72 | N11: 3.00 | O11: 0.37
B12: Итого: | D12: =SUM(D7:D11) -> 24.86 | E12: =SUM(E7:E11) -> 16.47 | F12: 92.43 | G12: 677.00 | H12: 0.36 | I12: 1.50 | J12: 20.00 | K12: 3.21 | L12: 59.81 | M12: 420.43 | N12: 194.96 | O12: 8.46
B13: 2 день
A14: ттк | B14: Жаркое из куриных грудок | C14: 50/180 | D14: 20.39 | E14: 19.55 | F14: 32.72 | G14: 368 | H14: 0.25 | I14: 31.99 | J14: 32.78 | K14: 2.50 | L14: 40.86 | M14: 227.52 | N14: 54.94 | O14: 2.60
A15: № 382, Сбор рец. На прод-ию для обуч. Во всех образ. Учреж Дели 2015 | B15: Компот из сухофруктов | C15: 200 | D15: 0.70 | E15: 0.10 | F15: 32.00 | G15: 132.80 | H15: 0.02 | I15: 0.73 | K15: 0.10 | L15: 32.48 | M15: 23.44 | N15: 17.46 | O15: 0.70
B16: Хлеб белый | C16: 30 | D16: 2.28 | E16: 0.24 | F16: 14.76 | G16: 71.00 | H16: 0.03 | K16: 0.33 | L16: 6.00 | M16: 19.50 | N16: 4.20 | O16: 0.33
B17: Хлеб сельский | C17: 20 | D17: 1.00 | E17: 0.20 | F17: 9.00 | G17: 44.00 | H17: 0.01 | K17: 0.11 | L17: 2.76 | M17: 12.72 | N17: 3.00 | O17: 0.37
B18: Итого: | D18: =SUM(D14:D17) -> 24.37 | E18: =SUM(E14:E17) -> 20.09 | F18: 88.48 | G18: 615.80 | H18: 0.32 | I18: 32.72 | J18: 32.78 | K18: 3.04 | L18: 82.10 | M18: 283.18 | N18: 79.60 | O18: 4.00
B19: 3 день
A20: № 260, Сбор рец. На прод-ию для обуч. Во всех образ. Учреж Дели 2015 | B20: Гуляш из говядины | C20: 50/50 | D20: 9.75 | E20: 11.50 | F20: 7.99 | G20: 156.00 | H20: 0.06 | I20: 2.44 | K20: 2.60 | L20: 14.98 | M20: 159.07 | N20: 20.92 | O20: 2.34
A21: № 202, Сбор рец. На прод-ию для обуч. Во всех образ. Учреж Дели 2015 | B21: Макаронные изделия отварные | C21: 180 | D21: 6.78 | E21: 5.36 | F21: 33.60 | G21: 210.00 | H21: 0.10 | J21: 25.20 | K21: 0.98 | L21: 19.76 | M21: 56.48 | N21: 10.19 | O21: 1.04
A22: № 377, Сбор рец. На прод-ию для обуч. Во всех образ. Учреж Дели 2015 | B22: Чай черный с сахаром с курагой | C22: 200/15/7 | D22: 0.52 | E22: 0.01 | F22: 21.73 | G22: 88.00 | L22: 0.45 | O22: 0.05
B23: Хлеб белый | C23: 30 | D23: 2.28 | E23: 0.24 | F23: 14.76 | G23: 71.00 | H23: 0.03 | K23: 0.33 | L23: 6.00 | M23: 19.50 | N23: 4.20 | O23: 0.33
B24: Хлеб сельский | C24: 20 | D24: 1.00 | E24: 0.20 | F24: 9.00 | G24: 44.00 | H24: 0.01 | K24: 0.11 | L24: 2.76 | M24: 12.72 | N24: 3.00 | O24: 0.37
B25: Итого: | D25: =SUM(D20:D24) -> 20.33 | E25: =SUM(E20:E24) -> 17.31 | F25: 87.07 | G25: 569.00 | H25: 0.21 | I25: 2.44 | J25: 25.20 | K25: 4.02 | L25: 43.95 | M25: 247.77 | N25: 38.31 | O25: =SUM(O20:O24) -> 4.13
B26: 4 день
A27: ттк | B27: Биточки рыбные, п/ф | C27: 100 | D27: 12.25 | E27: 6.75 | F27: 4.60 | G27: 12.50 | H27: 0.03 | I27: 6.25 | J27: 31.25 | K27: 1.19 | L27: 10.30 | M27: 26.63 | N27: 1.40 | O27: 0.38
A28: № 312, Сбор рец. На прод-ию для обуч. Во всех образ. Учреж Дели 2015 | B28: Пюре картофельное с маслом | C28: 180/5 | D28: 3.94 | E28: 5.59 | F28: 26.43 | G28: 171.60 | H28: 0.20 | I28: 31.13 | J28: 30.60 | K28: 0.22 | L28: 55.93 | M28: 116.80 | N28: 39.57 | O28: 1.48
A29: № 379, Сбор рец. На прод-ию для обуч. Во всех образ. Учреж Дели 2015 | B29: Компот из куряги | C29: 200 | D29: 0.78 | E29: 0.05 | F29: 27.63 | G29: 114.80 | H29: 0.02 | I29: 0.60 | K29: 1.10 | L29: 32.32 | M29: 21.90 | N29: 17.56 | O29: 0.48
B30: Хлеб белый | C30: 30 | D30: 2.28 | E30: 0.24 | F30: 14.76 | G30: 71.00 | H30: 0.03 | I30: 5.00 | K30: 0.33 | L30: 6.00 | M30: 19.50 | N30: 4.20 | O30: 0.33
B31: Хлеб сельский | C31: 20 | D31: 1.00 | E31: 0.20 | F31: 9.00 | G31: 44.00 | H31: 0.01 | I31: 5.00 | K31: 0.11 | L31: 2.76 | M31: 12.72 | N31: 3.00 | O31: 0.37
B32: Итого: | D32: =SUM(D27:D31) -> 20.25 | E32: =SUM(E27:E31) -> 12.83 | F32: 82.42 | G32: 413.90 | H32: 0.29 | I32: 47.98 | J32: 61.85 | K32: 2.95 | L32: 107.31 | M32: 197.55 | N32: 65.73 | O32: 3.04
B33: 5 день
A34: № 290, Сбор рец. На прод-ию для обуч. Во всех образ. Учреж Дели 2015 | B34: Плов с говядиной | C34: 50/180 | D34: 25.28 | E34: 25.90 | F34: 39.90 | G34: 493.73 | H34: 0.09 | I34: 1.96 | L34: 21.82 | M34: 306.90 | N34: 60.24 | O34: 4.06
A35: № 377, Сбор рец. На прод-ию для обуч. Во всех образ. Учреж Дели 2015 | B35: Чай черный с сахаром, лимоном | C35: 200/15/7 | D35: 0.08 | E35: 0.01 | F35: 9.87 | G35: 62.00 | H35: 0.00 | K35: 0.01 | L35: 3.25 | M35: 1.54 | N35: 0.84 | O35: 0.09
B36: Хлеб белый | C36: 30 | D36: 2.28 | E36: 0.24 | F36: 14.76 | G36: 71.00 | H36: 0.03 | K36: 0.33 | L36: 6.00 | M36: 19.50 | N36: 4.20 | O36: 0.33
B37: Хлеб сельский | C37: 20 | D37: 1.00 | E37: 0.20 | F37: 9.00 | G37: 44.00 | H37: 0.01 | K37: 0.11 | L37: 2.76 | M37: 12.72 | N37: 3.00 | O37: 0.37
B38: Итого: | D38: =SUM(D34:D37) -> 28.64 | E38: =SUM(E34:E37) -> 26.35 | F38: 73.53 | G38: 670.73 | H38: 0.14 | I38: 1.96 | J38: 0.00 | K38: 0.45 | L38: 33.83 | M38: =SUM(M34:M37) -> 340.66 | N38: 68.28 | O38: 4.85
B39: 6 день
A40: ттк | B40: Фрикадельки мясные в молочном соусе | C40: 80/30 | D40: 7.74 | E40: 10.77 | F40: 9.38 | G40: 168.09 | H40: 0.03 | I40: 0.17 | J40: 14.58 | K40: 0.41 | L40: 29.13 | M40: 76.92 | N40: 12.22 | O40: 4.78
A41: № 202, Сбор рец. На прод-ию для обуч. Во всех образ. Учреж Дели 2015 | B41: Макароны отварные | C41: 180 | D41: 6.78 | E41: 5.36 | F41: 33.60 | G41: 210.00 | H41: 0.10 | J41: 25.20 | K41: 0.98 | L41: 19.76 | M41: 56.48 | N41: 10.19 | O41: 1.04
A42: № 282, Сбор рец. На прод-ию для обуч. Во всех образ. Учреж Дели 2015 | B42: Какао с молоком | C42: 200 | D42: 3.97 | E42: 2.10 | F42: 25.17 | G42: 145.00 | H42: 0.04 | I42: 1.30 | J42: 20.00 | K42: 0.01 | L42: 125.72 | M42: 116.20 | N42: 31.00 | O42: 1.04
B43: Хлеб белый | C43: 30 | D43: 2.28 | E43: 0.24 | F43: 14.76 | G43: 71.00 | H43: 0.03 | K43: 0.33 | L43: 6.00 | M43: 19.50 | N43: 4.20 | O43: 0.33
B44: Хлеб сельский | C44: 20 | D44: 1.00 | E44: 0.20 | F44: 9.00 | G44: 44.00 | H44: 0.01 | K44: 0.11 | L44: 2.76 | M44: 12.72 | N44: 3.00 | O44: 0.37
B45: Итого: | D45: =SUM(D40:D44) -> 21.77 | E45: =SUM(E40:E44) -> 18.67 | F45: 91.91 | G45: 638.09 | H45: 0.22 | I45: 1.47 | J45: 59.78 | K45: 1.84 | L45: 183.37 | M45: 281.82 | N45: 60.61 | O45: 7.56
A46: 2-ая неделя
B47: 1 день
A48: ттк | B48: Котлеты "Аппетитные" мясо-куриные, п/ф | C48: 100 | D48: 9.75 | E48: 12.48 | F48: 6.40 | G48: 143.75 | H48: 0.08 | I48: 2.00 | J48: 16.10 | K48: 1.58 | L48: 18.83 | M48: 146.40 | N48: 18.94 | O48: 1.99
A49: № 202, Сбор рец. На прод-ию для обуч. Во всех образ. Учреж Дели 2015 | B49: Макаронные изделия отварные с маслом | C49: 180/5 | D49: 6.17 | E49: 9.71 | F49: 34.25 | G49: 264.00 | H49: 0.11 | J49: 25.20 | K49: 0.98 | L49: 19.75 | M49: 56.41 | N49: 10.18 | O49: 1.04
A50: № 382, Сбор рец. На прод-ию для обуч. Во всех образ. Учреж Дели 2015 | B50: Компот из сухофруктов | C50: 200 | D50: 0.70 | E50: 0.10 | F50: 32.00 | G50: 132.80 | H50: 0.02 | I50: 0.73 | K50: 0.10 | L50: 32.48 | M50: 23.44 | N50: 17.46 | O50: 0.70
B51: Хлеб белый | C51: 30 | D51: 2.28 | E51: 0.24 | F51: 14.76 | G51: 71.00 | H51: 0.03 | K51: 0.33 | L51: 6.00 | M51: 19.50 | N51: 4.20 | O51: 0.33
B52: Хлеб сельский | C52: 20 | D52: 1.00 | E52: 0.20 | F52: 9.00 | G52: 44.00 | H52: 0.01 | K52: 0.11 | L52: 2.76 | M52: 12.72 | N52: 3.00 | O52: 0.37
B53: Итого: | D53: =SUM(D48:D52) -> 19.90 | E53: =SUM(E48:E52) -> 22.72 | F53: 96.41 | G53: 655.55 | H53: 0.25 | I53: 2.73 | J53: 41.30 | K53: 3.10 | L53: 79.82 | M53: 258.47 | N53: 53.77 | O53: 4.43
B54: 2 день
A55: ттк | B55: Ежики мясные с рисом в соусе томатном, п/ф | C55: 80/50 | D55: 9.77 | E55: 8.54 | F55: 9.01 | G55: 151.92 | H55: 0.04 | J55: 23.96 | L55: 12.81 | M55: 103.50 | N55: 19.67 | O55: 0.82
A56: № 312, Сбор рец. На прод-ию для обуч. Во всех образ. Учреж Дели 2015 | B56: Пюре картофельное | C56: 180 | D56: 3.94 | E56: 5.59 | F56: 26.43 | G56: 171.60 | H56: 0.20 | I56: 31.13 | J56: 30.60 | K56: 0.22 | L56: 55.93 | M56: 116.80 | N56: 39.57 | O56: 1.48
A57: № 383, Сбор рец. На прод-ию для обуч. Во всех образ. Учреж Дели 2015 | B57: Какао с молоком | C57: 200 | D57: 3.60 | E57: 2.10 | F57: 25.17 | G57: 125.00 | H57: 0.04 | I57: 1.30 | J57: 20.00 | K57: 0.01 | L57: 125.72 | M57: 116.20 | N57: 31.00 | O57: 1.04
B58: Хлеб белый | C58: 30 | D58: 2.28 | E58: 0.24 | F58: 14.76 | G58: 71.00 | H58: 0.03 | K58: 0.33 | L58: 6.00 | M58: 19.50 | N58: 4.20 | O58: 0.33
B59: Хлеб сельский | C59: 20 | D59: 1.00 | E59: 0.20 | F59: 9.00 | G59: 44.00 | H59: 0.01 | K59: 0.11 | L59: 2.76 | M59: 12.72 | N59: 3.00 | O59: 0.37
B60: Итого: | D60: =SUM(D55:D59) -> 20.59 | E60: =SUM(E55:E59) -> 16.67 | F60: 84.37 | G60: 563.52 | H60: 0.33 | I60: 32.43 | J60: 74.56 | K60: 0.67 | L60: 203.22 | M60: 368.72 | N60: 97.44 | O60: 4.04
B61: 3 день
A62: ттк | B62: Гуляш из куриных грудок | C62: 50/50 | D62: 8.96 | E62: 8.32 | F62: 3.40 | G62: 171.00 | H62: 0.08 | I62: 3.97 | J62: 28.40 | K62: 3.20 | L62: 17.17 | M62: 122.75 | N62: 18.27 | O62: 1.14
A63: № 30, Сбор рец. На прод-ию для обуч. Во всех образ. Учреж Дели 2015 | B63: Каша гречневая рассыпчатая | C63: 180 | D63: 7.94 | E63: 10.82 | F63: 39.60 | G63: 204.00 | H63: 0.35 | J63: 25.20 | K63: 0.56 | L63: 24.76 | M63: 213.52 | N63: 125.06 | O63: 4.14
A64: № 377, Сбор рец. На прод-ию для обуч. Во всех образ. Учреж Дели 2015 | B64: Чай черный с сахаром | C64: 200/15/ | D64: 0.02 | E64: 0.01 | F64: 14.98 | G64: 60.00 | L64: 0.45 | O64: 0.05
B65: Хлеб белый | C65: 30 | D65: 2.28 | E65: 0.24 | F65: 14.76 | G65: 71.00 | H65: 0.03 | K65: 0.33 | L65: 6.00 | M65: 19.50 | N65: 4.20 | O65: 0.33
B66: Хлеб сельский | C66: 20 | D66: 1.00 | E66: 0.20 | F66: 9.00 | G66: 44.00 | H66: 0.01 | K66: 0.11 | L66: 2.76 | M66: 12.72 | N66: 3.00 | O66: 0.37
B67: Итого: | D67: =SUM(D62:D66) -> 20.20 | E67: =SUM(E62:E66) -> 19.59 | F67: 81.73 | G67: 550.00 | H67: 0.47 | I67: 3.97 | J67: 53.60 | K67: 4.20 | L67: 51.14 | M67: 368.49 | N67: 150.53 | O67: 6.02
B68: 4 день
B69: Грудка куриная (маринованное филе) в сливочном соусе | C69: 60/50 | D69: 13.89 | E69: 13.31 | F69: 3.14 | G69: 185.85 | H69: 0.05 | I69: 2.84 | J69: 47.62 | L69: 46.77 | M69: 84.87 | N69: 5.88 | O69: 0.99
A70: № 304, Сбор рец. На прод-ию для обуч. Во всех образ. Учреж Дели 2015 | B70: Рис отварной | C70: 180 | D70: 4.40 | E70: 5.88 | F70: 33.96 | G70: 206.40 | H70: 0.05 | I70: 0.00 | J70: 47.88 | K70: 0.32 | L70: 5.94 | M70: 98.82 | N70: 32.40 | O70: 0.65
A71: № 377, Сбор рец. На прод-ию для обуч. Во всех образ. Учреж Дели 2015 | B71: Чай черный с сахаром с курагой | C71: 200/15/10 | D71: 0.52 | E71: 0.01 | F71: 21.73 | G71: 88.00 | H71: 0.15 | J71: 0.09 | K71: 1.50 | L71: 100.45 | M71: 80.00 | N71: 40.00 | O71: 1.85
B72: Хлеб белый | C72: 30 | D72: 2.28 | E72: 0.24 | F72: 14.76 | G72: 71.00 | H72: 0.03 | K72: 0.33 | L72: 6.00 | M72: 19.50 | N72: 4.20 | O72: 0.33
B73: Хлеб сельский | C73: 20 | D73: 1.00 | E73: 0.20 | F73: 9.00 | G73: 44.00 | H73: 0.01 | K73: 0.11 | L73: 2.76 | M73: 12.72 | N73: 3.00 | O73: 0.37
B74: Итого: | D74: =SUM(D69:D73) -> 22.09 | E74: =SUM(E69:E73) -> 19.64 | F74: 82.59 | G74: 595.25 | H74: 0.29 | I74: 2.84 | J74: 95.59 | K74: 2.26 | L74: 161.92 | M74: 295.91 | N74: 85.48 | O74: 4.19
B75: 5 день
A76: ттк 701 | B76: Мясо по-милански | C76: 240 | D76: 21.27 | E76: 22.12 | F76: 39.24 | G76: 51.72 | H76: 0.21 | I76: 18.61 | J76: 194.58 | K76: 2.41 | L76: 204.16 | M76: 412.39 | N76: 58.20 | O76: 4.60
A77: № 377, Сбор рец. На прод-ию для обуч. Во всех образ. Учреж Дели 2015 | B77: Чай черный с сахаром, лимоном | C77: 200/15/7 | D77: 0.08 | E77: 0.01 | F77: 15.19 | G77: 62.00 | H77: 0.00 | I77: 2.80 | K77: 0.01 | L77: 3.25 | M77: 1.54 | N77: 0.84 | O77: 0.09
B78: Хлеб белый | C78: 30 | D78: 2.28 | E78: 0.24 | F78: 14.76 | G78: 71.00 | H78: 0.03 | K78: 0.33 | L78: 6.00 | M78: 19.50 | N78: 4.20 | O78: 0.33
B79: Хлеб сельский | C79: 20 | D79: 1.00 | E79: 0.20 | F79: 9.00 | G79: 44.00 | H79: 0.01 | K79: 0.11 | L79: 2.76 | M79: 12.72 | N79: 3.00 | O79: 0.37
B80: Итого: | D80: =SUM(D76:D79) -> 24.63 | E80: =SUM(E76:E79) -> 22.57 | F80: 78.19 | G80: 228.72 | H80: 0.26 | I80: 21.41 | J80: 194.58 | K80: 2.86 | L80: 216.17 | M80: 446.15 | N80: 66.24 | O80: 5.39
B81: 6 день
A82: № 243, Сбор рец. На прод-ию для обуч. Во всех образ. Учреж Дели 2015 | B82: Сосиски отварные | C82: 100 | D82: 7.40 | E82: 9.45 | F82: 0.80 | G82: 108.00 | H82: 0.03 | K82: 0.50 | L82: 25.00 | M82: 139.00 | N82: 15.00 | O82: 1.80
A83: № 202, Сбор рец. На прод-ию для обуч. Во всех образ. Учреж Дели 2015 | B83: Макаронные изделия отварные с маслом | C83: 180/5 | D83: 5.14 | E83: 8.07 | F83: 28.54 | G83: 220.00 | H83: 0.09 | J83: 21.00 | K83: 0.82 | L83: 16.46 | M83: 47.01 | N83: 8.48 | O83: 0.87
A84: № 379, Сбор рец. На прод-ию для обуч. Во всех образ. Учреж Дели 2015 | B84: Кофейный напиток с молоком | C84: 200 | D84: 3.30 | E84: 1.51 | F84: 29.06 | G84: 152.00 | H84: 0.12 | I84: 1.30 | J84: 20.25 | K84: 0.75 | L84: 170.60 | M84: 130.00 | N84: 34.00 | O84: 1.06
B85: Хлеб белый | C85: 30 | D85: 2.28 | E85: 0.24 | F85: 14.76 | G85: 71.00 | H85: 0.03 | K85: 0.33 | L85: 6.00 | M85: 19.50 | N85: 4.20 | O85: 0.33
B86: Хлеб сельский | C86: 20 | D86: 1.00 | E86: 0.20 | F86: 9.00 | G86: 44.00 | H86: 0.01 | K86: 0.11 | L86: 2.76 | M86: 12.72 | N86: 3.00 | O86: 0.37
B87: Итого: | D87: =SUM(D82:D86) -> 19.12 | E87: =SUM(E82:E86) -> 19.47 | F87: 82.16 | G87: 595.00 | H87: 0.28 | I87: 1.30 | J87: 41.25 | K87: 2.50 | L87: 220.82 | M87: 348.23 | N87: 64.68 | O87: 4.43
A88: ИТОГО за 12 дней | D88: =D12+D18+D25+D32+D38+D45+D53+D60+D67+D74+D80+D87 -> 266.76 | E88: 232.37 | F88: 1021.28 | G88: 6772.56 | H88: 3.43 | I88: 152.75 | J88: 700.49 | K88: 31.09 | L88: 1443.45 | M88: 3857.37 | N88: 1025.64 | O88: 60.54
